bitfinex/quotes_BTCUSD_20230904
["timestamp","ask_amount","ask_price","bid_price","bid_amount"]
[1693857023498,0.8190597,25913.0,25912.0,0.1821]
[1693857025143,0.8190597,25913.0,25912.0,0.0021]
[1693857029176,0.8190597,25913.0,25912.0,0.1821]
[1693857029979,1.58546337,25913.0,25912.0,0.1821]
[1693857030429,1.52546337,25913.0,25912.0,0.1821]
[1693857030670,1.61801419,25913.0,25912.0,0.1821]
[1693857031573,1.62325584,25913.0,25912.0,0.1821]
[1693857033500,1.73085584,25913.0,25912.0,0.1821]
[1693857036946,2.49742719,25913.0,25912.0,0.1821]
[1693857038221,2.50268119,25913.0,25912.0,0.1821]
[1693857043497,2.39508119,25913.0,25912.0,0.1821]
[1693857046351,2.37508119,25913.0,25912.0,0.1821]
[1693857048255,2.48268119,25913.0,25912.0,0.1821]
[1693857048995,1.71086819,25913.0,25912.0,0.1821]
[1693857049817,1.70561419,25913.0,25912.0,0.1821]
[1693857050243,1.71079217,25913.0,25912.0,0.1821]
[1693857050450,1.70561419,25913.0,25912.0,0.1821]
[1693857052399,1.71147053,25913.0,25912.0,0.1821]
[1693857056054,1.70561419,25913.0,25912.0,0.1821]
[1693857058256,1.71063495,25913.0,25912.0,0.1821]
[1693857058732,1.84946119,25913.0,25912.0,0.1821]
[1693857063913,1.61808413,25913.0,25912.0,0.1821]
[1693857064239,1.84966041,25913.0,25912.0,0.1821]
[1693857065762,1.7570299,25913.0,25912.0,0.1821]
[1693857065967,1.84966527,25913.0,25912.0,0.1821]
[1693857066143,1.7570299,25913.0,25912.0,0.1821]
[1693857071657,2.52382214,25913.0,25912.0,0.1821]
[1693857072034,2.70908317,25913.0,25912.0,0.1821]
[1693857074408,2.5701374,25913.0,25912.0,0.1821]
[1693857075143,2.6501374,25913.0,25912.0,0.1821]
[1693857075316,4.30888827,25913.0,25912.0,0.1821]
[1693857075521,4.07731198,25913.0,25912.0,0.1821]
[1693857076343,4.15731198,25913.0,25912.0,0.1821]
[1693857078435,4.48011198,25913.0,25912.0,0.1821]
[1693857079412,4.48011198,25913.0,25912.0,0.1801]
[1693857079864,4.51911198,25913.0,25912.0,0.1841]
[1693857080072,4.49911198,25913.0,25912.0,0.1821]
[1693857080365,4.49911198,25913.0,25912.0,0.1841]
[1693857080366,4.51911198,25913.0,25912.0,0.1841]
[1693857080967,4.50011198,25913.0,25912.0,0.1821]
[1693857081366,4.51911198,25913.0,25912.0,0.1841]
[1693857084401,4.81911198,25913.0,25912.0,0.1841]
[1693857087025,5.20575725,25913.0,25912.0,0.1841]
[1693857087161,5.43702948,25913.0,25912.0,0.1841]
[1693857087783,5.20575725,25913.0,25912.0,0.1841]
[1693857088260,5.27115725,25913.0,25912.0,0.1841]
[1693857088466,5.50300058,25913.0,25912.0,0.1841]
[1693857088864,5.43700058,25913.0,25912.0,0.1841]
[1693857089201,5.50714058,25913.0,25912.0,0.1841]
[1693857089415,5.50966058,25913.0,25912.0,0.1841]
[1693857089613,5.51044058,25913.0,25912.0,0.1841]
[1693857089818,5.27607725,25913.0,25912.0,0.1841]
[1693857090025,5.27871725,25913.0,25912.0,0.1841]
[1693857090243,5.27997725,25913.0,25912.0,0.1841]
[1693857090515,5.28105725,25913.0,25912.0,0.1841]
[1693857090714,5.30147725,25913.0,25912.0,0.1841]
[1693857090920,5.31119725,25913.0,25912.0,0.1841]
[1693857091140,5.30729725,25913.0,25912.0,0.1841]
[1693857091367,5.30999725,25913.0,25912.0,0.1841]
[1693857091594,5.64257234,25913.0,25912.0,0.1841]
[1693857091780,5.64719234,25913.0,25912.0,0.1841]
[1693857091981,5.64617234,25913.0,25912.0,0.1841]
[1693857092208,5.64629234,25913.0,25912.0,0.1841]
[1693857092432,5.62725234,25913.0,25912.0,0.1821]
[1693857092553,5.62707234,25913.0,25912.0,0.1821]
[1693857092753,5.65047234,25913.0,25912.0,0.1841]
[1693857093000,5.60723234,25913.0,25912.0,0.1801]
[1693857093221,5.60789234,25913.0,25912.0,0.1801]
[1693857093397,5.60711234,25913.0,25912.0,0.1801]
[1693857093593,5.63087234,25913.0,25912.0,0.1821]
[1693857093917,5.65601234,25913.0,25912.0,0.1841]
[1693857094081,5.65631234,25913.0,25912.0,0.1841]
[1693857094271,5.3544208,25913.0,25912.0,0.1821]
[1693857094480,5.3787208,25913.0,25912.0,0.1841]
[1693857094678,5.3791408,25913.0,25912.0,0.1841]
[1693857094882,5.3792608,25913.0,25912.0,0.1841]
[1693857095288,5.65727234,25913.0,25912.0,0.1841]
[1693857095500,0.00622353,25905.0,25904.0,0.2067]
[1693857095765,0.00494301,25903.0,25902.0,0.00925157]
[1693857095968,0.63276654,25903.0,25902.0,0.00925157]
[1693857096211,1.40487754,25903.0,25900.0,0.13824342]
[1693857096467,1.40487754,25903.0,25899.0,0.03022424]
[1693857096468,0.22142353,25901.0,25899.0,0.03022424]
[1693857096670,0.1076,25900.0,25899.0,0.03022424]
[1693857096875,0.1076,25900.0,25898.0,0.2343929]
[1693857097085,0.1076,25899.0,25898.0,0.62103817]
[1693857098927,0.1076,25899.0,25898.0,0.024]
[1693857099128,0.11207928,25899.0,25897.0,0.03041637]
[1693857099332,0.11207928,25899.0,25898.0,0.048]
[1693857099333,0.00847928,25899.0,25898.0,0.048]
[1693857099539,0.11607928,25899.0,25898.0,0.048]
[1693857099949,0.11407928,25899.0,25898.0,0.024]
[1693857100165,0.11607928,25899.0,25898.0,0.024]
[1693857100578,0.63007928,25899.0,25898.0,0.024]
[1693857100785,0.62807928,25899.0,25898.0,0.024]
[1693857100993,0.63007928,25899.0,25898.0,0.048]
[1693857101194,2.17453928,25899.0,25898.0,0.048]
[1693857101643,2.17253928,25899.0,25898.0,0.024]
[1693857102023,2.17453928,25899.0,25898.0,0.044]
[1693857102222,2.17053928,25899.0,25895.0,0.21296899]
[1693857102474,0.2152,25896.0,25895.0,0.21296899]
[1693857102736,0.2152,25896.0,25892.0,0.17243479]
[1693857102940,0.2152,25896.0,25893.0,0.38664527]
[1693857102941,0.1076,25896.0,25893.0,0.38664527]
[1693857103140,0.1076,25894.0,25893.0,0.47908006]
[1693857103343,0.1076,25894.0,25892.0,0.17243479]
[1693857103572,0.1076,25893.0,25892.0,0.17243479]
[1693857103793,0.1076,25893.0,25892.0,0.47243479]
[1693857105644,0.1096,25893.0,25892.0,0.49643479]
[1693857106101,0.1076,25893.0,25892.0,0.47243479]
[1693857106351,0.1096,25893.0,25892.0,0.49643479]
[1693857106605,0.1116,25893.0,25892.0,0.52043479]
[1693857107010,0.1116,25893.0,25892.0,0.77181787]
[1693857110185,0.2916,25893.0,25892.0,0.77181787]
[1693857110681,0.2916,25893.0,25892.0,0.77157888]
[1693857112153,0.32421831,25893.0,25892.0,0.77157888]
[1693857112754,0.32421831,25893.0,25892.0,0.67938308]
[1693857113585,0.32421831,25893.0,25892.0,0.77157605]
[1693857115676,0.32421831,25893.0,25892.0,0.67938308]
[1693857121229,0.32421831,25893.0,25892.0,0.77157605]
[1693857121491,0.32421831,25893.0,25892.0,0.77165449]
[1693857129190,0.33011487,25893.0,25892.0,0.048]
[1693857130228,0.32811487,25893.0,25892.0,0.024]
[1693857130438,0.84211487,25893.0,25892.0,0.024]
[1693857131067,0.84411487,25893.0,25892.0,0.048]
[1693857131285,0.73651487,25893.0,25892.0,0.048]
[1693857131493,0.73251487,25893.0,25890.0,0.09227141]
[1693857131703,0.1076,25891.0,25890.0,0.09227141]
[1693857132951,0.1096,25891.0,25890.0,0.02]
[1693857133160,0.1096,25891.0,25890.0,0.11227141]
[1693857133983,0.1116,25891.0,25890.0,0.13327141]
[1693857135800,0.1116,25891.0,25890.0,0.041]
[1693857136021,0.1116,25891.0,25890.0,0.13327141]
[1693857137537,0.22382728,25891.0,25890.0,0.041]
[1693857137744,0.63022728,25891.0,25890.0,0.041]
[1693857139143,2.17516528,25891.0,25890.0,0.041]
[1693857139779,2.94763428,25891.0,25890.0,0.041]
[1693857142150,2.97682707,25891.0,25890.0,0.041]
[1693857146391,2.20435807,25891.0,25890.0,0.041]
[1693857155264,2.20235807,25891.0,25890.0,0.021]
[1693857155638,2.20635807,25891.0,25890.0,0.001]
[1693857155841,2.20835807,25891.0,25890.0,0.022]
[1693857155986,2.36535807,25891.0,25890.0,0.022]
[1693857156170,2.36335807,25891.0,25890.0,0.001]
[1693857156373,2.36935807,25891.0,25890.0,0.002]
[1693857158078,3.13719979,25891.0,25890.0,0.002]
[1693857161703,3.14218294,25891.0,25890.0,0.002]
[1693857165957,3.52384506,25891.0,25890.0,0.002]
[1693857166874,3.42089003,25891.0,25890.0,0.002]
[1693857167055,3.52364506,25891.0,25890.0,0.002]
[1693857167813,3.52906034,25891.0,25890.0,0.002]
[1693857169025,3.52364506,25891.0,25890.0,0.002]
[1693857169423,3.52841704,25891.0,25890.0,0.002]
[1693857169561,3.52364506,25891.0,25890.0,0.002]
[1693857171261,3.52843243,25891.0,25890.0,0.002]
[1693857173520,3.52364506,25891.0,25890.0,0.002]
[1693857173738,3.52826553,25891.0,25890.0,0.002]
[1693857174138,3.52364506,25891.0,25890.0,0.002]
[1693857175465,3.52873646,25891.0,25890.0,0.002]
[1693857177915,3.36664506,25891.0,25890.0,0.002]
[1693857178128,3.38664506,25891.0,25890.0,0.002]
[1693857180472,3.42664506,25891.0,25890.0,0.002]
[1693857180677,3.85329033,25891.0,25890.0,0.002]
[1693857181736,3.84729033,25891.0,25890.0,0.001]
[1693857181911,3.85229033,25891.0,25890.0,0.002]
[1693857182111,4.01639033,25891.0,25890.0,0.002]
[1693857182528,4.01139033,25891.0,25890.0,0.001]
[1693857182712,4.03421555,25891.0,25890.0,0.002]
[1693857182914,3.64757028,25891.0,25890.0,0.002]
[1693857183115,3.67057028,25891.0,25890.0,0.004]
[1693857189390,3.66474506,25891.0,25890.0,0.004]
[1693857189982,4.05139033,25891.0,25890.0,0.004]
[1693857191143,4.05637405,25891.0,25890.0,0.004]
[1693857193730,4.05139033,25891.0,25890.0,0.004]
[1693857194487,4.05718625,25891.0,25890.0,0.004]
[1693857194689,4.05139033,25891.0,25890.0,0.004]
[1693857200026,3.50516158,25891.0,25890.0,0.004]
[1693857202560,3.48516158,25891.0,25890.0,0.004]
[1693857218469,3.5777761,25891.0,25890.0,0.004]
[1693857234322,3.48516158,25891.0,25890.0,0.004]
[1693857234523,3.57782891,25891.0,25890.0,0.004]
[1693857237633,3.55782891,25891.0,25890.0,0.004]
[1693857237833,3.57782891,25891.0,25890.0,0.004]
[1693857242882,3.7510128,25891.0,25890.0,0.004]
[1693857247981,3.65834547,25891.0,25890.0,0.004]
[1693857248220,3.75100681,25891.0,25890.0,0.004]
[1693857250269,3.88999882,25891.0,25890.0,0.004]
[1693857250424,3.71681493,25891.0,25890.0,0.004]
[1693857252730,3.71229841,25891.0,25890.0,0.004]
[1693857254177,3.80495976,25891.0,25890.0,0.004]
[1693857254832,3.66596775,25891.0,25890.0,0.004]
[1693857255248,4.12249274,25891.0,25890.0,0.004]
[1693857255474,4.41901132,25891.0,25890.0,0.004]
[1693857256504,3.96248633,25891.0,25890.0,0.004]
[1693857256707,3.66596775,25891.0,25890.0,0.004]
[1693857257295,4.12249501,25891.0,25890.0,0.004]
[1693857257499,3.66596775,25891.0,25890.0,0.004]
[1693857258641,3.64596775,25891.0,25890.0,0.004]
[1693857259698,3.46064506,25891.0,25890.0,0.004]
[1693857259899,3.64590438,25891.0,25890.0,0.004]
[1693857261263,4.37504965,25891.0,25890.0,0.004]
[1693857261470,5.06316245,25891.0,25890.0,0.004]
[1693857262177,5.36316245,25891.0,25890.0,0.004]
[1693857262956,5.34016245,25891.0,25890.0,0.002]
[1693857263165,0.4064,25888.0,25886.0,0.019998]
[1693857263365,3.711752,25887.0,25886.0,0.019998]
[1693857263741,3.74333015,25887.0,25886.0,0.019998]
[1693857264159,3.89788915,25887.0,25886.0,0.019998]
[1693857264321,4.28453442,25887.0,25886.0,0.019998]
[1693857264934,4.28653442,25887.0,25886.0,0.019998]
[1693857265158,4.29129971,25887.0,25886.0,0.019998]
[1693857266444,4.29429971,25887.0,25886.0,0.019998]
[1693857266646,4.28929971,25887.0,25886.0,0.019998]
[1693857266982,4.33029971,25887.0,25886.0,0.019998]
[1693857269348,0.44213715,25887.0,25886.0,0.17465611]
[1693857269577,0.44213715,25887.0,25886.0,0.31920657]
[1693857269578,0.18007815,25887.0,25886.0,0.31920657]
[1693857277468,0.36007815,25887.0,25886.0,0.31920657]
[1693857294225,0.36007815,25887.0,25886.0,0.70585184]
[1693857294428,0.36007815,25887.0,25886.0,0.81854381]
[1693857294629,0.36007815,25887.0,25886.0,0.86488979]
[1693857294830,0.3285,25887.0,25886.0,0.86488979]
[1693857295033,0.3285,25887.0,25886.0,1.05027373]
[1693857295613,0.35776162,25887.0,25886.0,0.86488979]
[1693857296668,0.35776162,25887.0,25886.0,0.56568122]
[1693857297276,0.35776162,25887.0,25886.0,0.83908296]
[1693857297882,0.35776162,25887.0,25886.0,0.93171336]
[1693857298677,0.35776162,25887.0,25886.0,0.79267541]
[1693857304667,0.33776162,25887.0,25886.0,0.79267541]
[1693857304914,0.31676162,25887.0,25886.0,0.79267541]
[1693857305111,0.32776162,25887.0,25886.0,0.79267541]
[1693857305315,0.33976162,25887.0,25886.0,0.79267541]
[1693857305493,0.31676162,25887.0,25886.0,0.79267541]
[1693857305701,0.33976162,25887.0,25886.0,0.79267541]
[1693857322213,0.3383126,25887.0,25886.0,0.79267541]
[1693857332581,0.3383126,25887.0,25886.0,0.93171336]
[1693857332920,0.23226162,25887.0,25886.0,1.19947319]
[1693857333122,0.23226162,25887.0,25886.0,1.19575319]
[1693857333348,0.203,25887.0,25886.0,1.33997466]
[1693857333570,0.203,25887.0,25886.0,1.33829466]
[1693857333842,0.192,25887.0,25886.0,1.19311319]
[1693857334068,0.192,25887.0,25886.0,1.10277448]
[1693857334243,0.181,25887.0,25886.0,1.10553448]
[1693857334446,0.182,25887.0,25886.0,1.34090099]
[1693857334775,0.182,25887.0,25886.0,0.96538327]
[1693857334982,0.182,25887.0,25886.0,1.19608712]
[1693857335151,0.182,25887.0,25886.0,0.96430327]
[1693857335356,0.182,25887.0,25886.0,1.19536712]
[1693857335554,0.182,25887.0,25886.0,0.96370327]
[1693857335758,0.182,25887.0,25886.0,1.19524892]
[1693857335972,0.182,25887.0,25886.0,1.19512892]
[1693857336169,0.182,25887.0,25886.0,1.19446892]
[1693857336416,0.182,25887.0,25886.0,1.19428892]
[1693857336604,0.182,25887.0,25886.0,0.94250327]
[1693857336813,0.182,25887.0,25886.0,0.94304327]
[1693857337019,0.182,25887.0,25886.0,0.94256327]
[1693857337322,0.182,25887.0,25886.0,0.94238327]
[1693857337520,0.182,25887.0,25886.0,0.94454327]
[1693857337737,0.182,25887.0,25886.0,0.94370327]
[1693857337944,0.182,25887.0,25886.0,0.94346327]
[1693857338104,0.182,25887.0,25886.0,0.94298327]
[1693857338305,0.182,25887.0,25886.0,0.94280327]
[1693857338505,0.182,25887.0,25886.0,0.94268327]
[1693857338506,0.18186988,25887.0,25886.0,0.94268327]
[1693857338707,0.18186988,25887.0,25886.0,0.94532327]
[1693857338914,0.18186988,25887.0,25886.0,0.94424327]
[1693857339142,0.18186988,25887.0,25886.0,0.94556327]
[1693857339297,0.18186988,25887.0,25886.0,0.94562327]
[1693857339467,0.18186988,25887.0,25886.0,0.94568327]
[1693857339884,0.18186988,25887.0,25886.0,0.94562327]
[1693857340081,0.18186988,25887.0,25886.0,0.94556327]
[1693857340307,0.18186988,25887.0,25886.0,0.94580327]
[1693857340510,0.18186988,25887.0,25886.0,0.94586327]
[1693857340716,0.18186988,25887.0,25886.0,0.94496327]
[1693857340924,0.18186988,25887.0,25886.0,0.94514327]
[1693857341139,0.18186988,25887.0,25886.0,0.94538327]
[1693857341358,0.18186988,25887.0,25886.0,0.94556327]
[1693857341579,0.18186988,25887.0,25886.0,0.94970327]
[1693857341798,0.18186988,25887.0,25886.0,0.95054327]
[1693857342003,0.18186988,25887.0,25886.0,0.94970327]
[1693857342212,0.18186988,25887.0,25886.0,0.94940327]
[1693857342628,0.18186988,25887.0,25886.0,0.94952327]
[1693857342899,0.18186988,25887.0,25886.0,0.94922327]
[1693857343110,0.18186988,25887.0,25886.0,0.94934327]
[1693857343515,0.18186988,25887.0,25886.0,0.95162327]
[1693857343719,0.18186988,25887.0,25886.0,0.95210327]
[1693857344126,0.18186988,25887.0,25886.0,0.95198327]
[1693857344490,0.18186988,25887.0,25886.0,0.95216327]
[1693857344709,0.18186988,25887.0,25886.0,0.95204327]
[1693857345020,0.18186988,25887.0,25886.0,0.95174327]
[1693857345369,0.18186988,25887.0,25886.0,0.95192327]
[1693857345505,0.18186988,25887.0,25886.0,0.95186327]
[1693857345926,0.18186988,25887.0,25886.0,0.95210327]
[1693857346331,0.18186988,25887.0,25886.0,0.95180327]
[1693857346630,0.18186988,25887.0,25886.0,0.95156327]
[1693857346811,0.18186988,25887.0,25886.0,0.95402327]
[1693857346985,0.18186988,25887.0,25886.0,0.95414327]
[1693857347189,0.18186988,25887.0,25886.0,0.95408327]
[1693857347789,0.18186988,25887.0,25886.0,0.95414327]
[1693857348143,0.18186988,25887.0,25886.0,1.01285065]
[1693857348321,0.18186988,25887.0,25886.0,1.01255065]
[1693857348539,0.18186988,25887.0,25886.0,1.01279065]
[1693857348675,0.18186988,25887.0,25886.0,1.01255065]
[1693857348880,0.18186988,25887.0,25886.0,1.01159065]
[1693857349085,0.18186988,25887.0,25886.0,1.01105065]
[1693857349316,0.18186988,25887.0,25886.0,1.01099065]
[1693857349516,0.18186988,25887.0,25886.0,1.01063065]
[1693857350079,0.18186988,25887.0,25886.0,1.24223836]
[1693857350280,0.18186988,25887.0,25886.0,1.24211836]
[1693857350416,0.18186988,25887.0,25886.0,1.24229836]
[1693857350623,0.18186988,25887.0,25886.0,1.23875836]
[1693857350823,0.18186988,25887.0,25886.0,1.23857836]
[1693857351110,0.18186988,25887.0,25886.0,1.23953836]
[1693857351289,0.18186988,25887.0,25886.0,1.23971836]
[1693857351515,0.18186988,25887.0,25886.0,1.23977836]
[1693857351697,0.18186988,25887.0,25886.0,1.23953836]
[1693857352097,0.18186988,25887.0,25886.0,1.23971836]
[1693857352308,0.18186988,25887.0,25886.0,1.23977836]
[1693857352457,0.18186988,25887.0,25886.0,1.23983836]
[1693857352663,0.18186988,25887.0,25886.0,1.00841065]
[1693857352919,0.18186988,25887.0,25886.0,1.00847065]
[1693857353328,0.18186988,25887.0,25886.0,1.00823065]
[1693857353536,0.18186988,25887.0,25886.0,1.00853065]
[1693857353711,0.18186988,25887.0,25886.0,1.00859065]
[1693857353905,0.18186988,25887.0,25886.0,1.00817065]
[1693857354111,0.18186988,25887.0,25886.0,1.23946184]
[1693857354335,0.18186988,25887.0,25886.0,1.00817065]
[1693857354656,0.18186988,25887.0,25886.0,1.00799065]
[1693857354796,0.18186988,25887.0,25886.0,1.23651989]
[1693857354995,0.18186988,25887.0,25886.0,1.23663989]
[1693857355196,0.18186988,25887.0,25886.0,1.23657989]
[1693857355567,0.18186988,25887.0,25886.0,1.23615989]
[1693857355700,0.18186988,25887.0,25886.0,1.23669989]
[1693857355904,0.18186988,25887.0,25886.0,1.23675989]
[1693857356123,0.18186988,25887.0,25886.0,1.23687989]
[1693857356320,0.18186988,25887.0,25886.0,1.23699989]
[1693857356701,0.18186988,25887.0,25886.0,1.23651989]
[1693857356888,0.18186988,25887.0,25886.0,1.23657989]
[1693857357109,0.18186988,25887.0,25886.0,1.23675989]
[1693857357441,0.18186988,25887.0,25886.0,1.23651989]
[1693857357616,0.18186988,25887.0,25886.0,1.23675989]
[1693857357819,0.18186988,25887.0,25886.0,1.23711989]
[1693857357974,0.18186988,25887.0,25886.0,1.23687989]
[1693857358378,0.18186988,25887.0,25886.0,1.23699989]
[1693857358694,0.18186988,25887.0,25886.0,1.23675989]
[1693857358903,0.18186988,25887.0,25886.0,1.23717989]
[1693857359510,0.18186988,25887.0,25886.0,1.23561989]
[1693857359723,0.18186988,25887.0,25886.0,1.00553065]
[1693857359963,0.18186988,25887.0,25886.0,1.23741886]
[1693857360122,0.18186988,25887.0,25886.0,1.23747886]
[1693857360326,0.18186988,25887.0,25886.0,1.04427065]
[1693857360477,0.18186988,25887.0,25886.0,1.47894481]
[1693857360682,0.18186988,25887.0,25886.0,1.47702481]
[1693857360943,0.18186988,25887.0,25886.0,1.47756481]
[1693857361132,0.18186988,25887.0,25886.0,1.47642481]
[1693857361339,0.18086988,25887.0,25886.0,1.47260481]
[1693857361579,0.18186988,25887.0,25886.0,1.48038481]
[1693857361763,0.18186988,25887.0,25886.0,1.47936481]
[1693857361920,0.18186988,25887.0,25886.0,1.47752481]
[1693857362122,0.18186988,25887.0,25886.0,1.47686481]
[1693857362320,0.17986988,25887.0,25886.0,1.46720481]
[1693857362527,0.17986988,25887.0,25886.0,1.46774481]
[1693857362728,0.18186988,25887.0,25886.0,1.47638481]
[1693857362948,0.18186988,25887.0,25886.0,1.47626481]
[1693857363151,0.18386988,25887.0,25886.0,1.48590481]
[1693857363357,0.18386988,25887.0,25886.0,1.48632481]
[1693857363711,0.18386988,25887.0,25886.0,1.2082489]
[1693857363930,0.18386988,25887.0,25886.0,1.2081889]
[1693857364146,0.18386988,25887.0,25886.0,1.2082489]
[1693857364563,0.18386988,25887.0,25886.0,1.2081889]
[1693857365173,0.18386988,25887.0,25886.0,1.2081289]
[1693857365591,0.18386988,25887.0,25886.0,1.2081889]
[1693857365790,0.18386988,25887.0,25886.0,1.2079489]
[1693857366384,0.18386988,25887.0,25886.0,1.2094489]
[1693857366562,0.18386988,25887.0,25886.0,1.2080689]
[1693857366764,0.18386988,25887.0,25886.0,1.2079489]
[1693857366960,0.18386988,25887.0,25886.0,1.2077689]
[1693857367166,0.18386988,25887.0,25886.0,1.2078289]
[1693857367345,0.18386988,25887.0,25886.0,1.2080689]
[1693857367548,0.18386988,25887.0,25886.0,1.2077089]
[1693857367872,0.18386988,25887.0,25886.0,1.2087289]
[1693857368135,0.18386988,25887.0,25886.0,1.2086689]
[1693857368345,0.18386988,25887.0,25886.0,1.2090889]
[1693857368544,0.18386988,25887.0,25886.0,1.2089689]
[1693857368684,0.18386988,25887.0,25886.0,1.2089089]
[1693857368863,0.18386988,25887.0,25886.0,1.2084889]
[1693857369433,0.18386988,25887.0,25886.0,1.2084289]
[1693857369961,0.18386988,25887.0,25886.0,1.2081889]
[1693857370166,0.18386988,25887.0,25886.0,1.2080089]
[1693857370416,0.18386988,25887.0,25886.0,1.2056089]
[1693857370645,0.18386988,25887.0,25886.0,1.2053689]
[1693857370834,0.18386988,25887.0,25886.0,1.2052489]
[1693857371030,0.18386988,25887.0,25886.0,1.2053089]
[1693857371255,0.18386988,25887.0,25886.0,1.2056689]
[1693857371459,0.18386988,25887.0,25886.0,1.2056089]
[1693857371635,0.18386988,25887.0,25886.0,1.2058489]
[1693857371831,0.18386988,25887.0,25886.0,1.2056689]
[1693857372425,0.18386988,25887.0,25886.0,1.2057889]
[1693857372632,0.18386988,25887.0,25886.0,1.2063289]
[1693857372883,0.004,25887.0,25886.0,1.2065089]
[1693857373059,0.004,25887.0,25886.0,1.2056089]
[1693857373267,0.004,25887.0,25886.0,1.2056689]
[1693857373475,0.004,25887.0,25886.0,1.2054889]
[1693857373720,0.004,25887.0,25886.0,1.2080089]
[1693857374323,0.004,25887.0,25886.0,1.2198889]
[1693857374643,0.004,25887.0,25886.0,1.2215689]
[1693857374867,0.004,25887.0,25886.0,1.49988481]
[1693857375082,0.00099756,25892.0,25891.0,0.02]
[1693857375289,0.00099756,25892.0,25891.0,0.65386369]
[1693857375498,0.1075,25893.0,25892.0,0.02]
[1693857375741,0.1075,25893.0,25892.0,0.47919977]
[1693857376779,0.1205,25893.0,25892.0,0.48019977]
[1693857377366,0.15367446,25893.0,25892.0,0.69907802]
[1693857377773,0.16567446,25893.0,25892.0,0.70007802]
[1693857379440,0.34567446,25893.0,25892.0,0.31366628]
[1693857381561,0.34567446,25893.0,25892.0,0.69915923]
[1693857383543,0.23817446,25893.0,25892.0,0.69915923]
[1693857387770,0.23817446,25893.0,25892.0,0.60752352]
[1693857389001,0.34567446,25893.0,25892.0,0.002]
[1693857389602,0.35044075,25893.0,25892.0,0.002]
[1693857411364,1.12284975,25893.0,25892.0,0.002]
[1693857412362,1.11808346,25893.0,25892.0,0.002]
[1693857412562,1.12332312,25893.0,25892.0,0.002]
[1693857412763,0.35091412,25893.0,25892.0,0.002]
[1693857415845,0.34979777,25893.0,25892.0,0.002]
[1693857479541,0.34455811,25893.0,25892.0,0.35542951]
[1693857479746,0.23705811,25893.0,25892.0,0.23369931]
[1693857479948,0.23705811,25893.0,25892.0,0.99367724]
[1693857480156,0.23705811,25893.0,25892.0,0.85465765]
[1693857480358,0.23705811,25893.0,25892.0,0.80570404]
[1693857480563,0.20388365,25893.0,25892.0,0.90644795]
[1693857480768,0.20388365,25893.0,25892.0,0.83990795]
[1693857482187,0.20388365,25893.0,25892.0,0.80547178]
[1693857482796,0.20388365,25893.0,25892.0,1.01582309]
[1693857483399,0.20388365,25893.0,25892.0,0.78412377]
[1693857484576,0.20388365,25893.0,25892.0,0.92291481]
[1693857485389,0.20388365,25893.0,25892.0,0.73778762]
[1693857486374,0.23519826,25893.0,25892.0,0.73778762]
[1693857489333,0.23519826,25893.0,25892.0,0.83026806]
[1693857491137,0.23519826,25893.0,25892.0,0.83018288]
[1693857492428,0.23519826,25893.0,25892.0,0.6914711]
[1693857504405,0.23519826,25893.0,25892.0,0.59899658]
[1693857507528,0.23519826,25893.0,25892.0,0.6914711]
[1693857518182,0.23519826,25893.0,25892.0,0.83018288]
[1693857521410,0.23519826,25893.0,25892.0,0.73770836]
[1693857524312,0.23519826,25893.0,25892.0,0.92265741]
[1693857525484,0.23519826,25893.0,25892.0,0.78394563]
[1693857537408,0.05519826,25893.0,25892.0,0.78394563]
[1693857549517,0.05519826,25893.0,25892.0,1.01513194]
[1693857551104,0.05519826,25893.0,25892.0,0.78394563]
[1693857552576,0.05519826,25893.0,25892.0,0.83018289]
[1693857552785,0.05519826,25893.0,25892.0,1.01549683]
[1693857586713,0.23519826,25893.0,25892.0,1.01549683]
[1693857601303,0.23519826,25893.0,25892.0,0.41850025]
[1693857601514,0.35459826,25893.0,25892.0,0.41850025]
[1693857601747,0.23519826,25893.0,25892.0,0.67419193]
[1693857602600,0.23519826,25893.0,25892.0,0.48887799]
[1693857602790,0.23519826,25893.0,25892.0,0.87552326]
[1693857607302,0.23519826,25893.0,25892.0,0.47198527]
[1693857607513,0.0009876,25898.0,25897.0,0.16]
[1693857607719,0.0040069,25899.0,25898.0,0.18]
[1693857607935,0.0040069,25899.0,25898.0,0.95269906]
[1693857608138,0.0040069,25899.0,25898.0,1.12846338]
[1693857608393,0.0040069,25899.0,25898.0,1.39382527]
[1693857608622,0.0040069,25899.0,25898.0,1.81082002]
[1693857608828,0.0040069,25899.0,25898.0,1.62582902]
[1693857609040,0.0040069,25899.0,25898.0,1.62672902]
[1693857609250,0.0040069,25899.0,25898.0,1.62654902]
[1693857609457,0.0060069,25899.0,25898.0,1.83668195]
[1693857609661,0.0060069,25899.0,25898.0,1.83296195]
[1693857609878,0.0080069,25899.0,25898.0,1.6292982]
[1693857610051,0.0080069,25899.0,25898.0,1.6214982]
[1693857610287,0.0080069,25899.0,25898.0,1.6246782]
[1693857610504,0.0080069,25899.0,25898.0,1.76301414]
[1693857610732,0.0080069,25899.0,25898.0,1.76289414]
[1693857610952,0.0080069,25899.0,25898.0,1.91163414]
[1693857611161,0.0080069,25899.0,25898.0,1.91295414]
[1693857611365,0.0080069,25899.0,25898.0,1.77081414]
[1693857611544,0.0080069,25899.0,25898.0,1.58486121]
[1693857611752,0.0080069,25899.0,25898.0,1.58372121]
[1693857611959,0.0080069,25899.0,25898.0,1.58204121]
[1693857612171,0.0080069,25899.0,25898.0,1.58144121]
[1693857612377,0.0080069,25899.0,25898.0,1.58114121]
[1693857612582,0.0080069,25899.0,25898.0,1.67963715]
[1693857612787,0.0080069,25899.0,25898.0,1.57825715]
[1693857612991,0.0080069,25899.0,25898.0,1.67873715]
[1693857613199,0.0080069,25899.0,25898.0,1.5861086]
[1693857613409,0.0080069,25899.0,25898.0,1.6774131]
[1693857613625,0.0080069,25899.0,25898.0,1.6759731]
[1693857613838,0.0080069,25899.0,25898.0,1.53727716]
[1693857614045,0.0080069,25899.0,25898.0,1.53649716]
[1693857614219,0.0080069,25899.0,25898.0,1.53583716]
[1693857614431,0.0080069,25899.0,25898.0,1.53559716]
[1693857614689,0.0080069,25899.0,25898.0,1.53541716]
[1693857614891,0.0080069,25899.0,25898.0,1.78368024]
[1693857615091,0.0080069,25899.0,25898.0,1.50026977]
[1693857615244,0.0080069,25899.0,25898.0,1.50212977]
[1693857615448,0.0080069,25899.0,25898.0,1.534653]
[1693857615791,0.0080069,25899.0,25898.0,1.535913]
[1693857616108,0.0080069,25899.0,25898.0,1.536873]